[Event "Titled Tuesday Blitz June 21 Early 2022"]
[White "Skliarov, Viktor"]
[Black "Maiorov, Nikita"]
[WhiteFideId "14106736"]
[BlackFideId "13501720"]
[WhiteElo "2229"]
[BlackElo "2417"]
[Result "0-1"]
[Round "11"]
[TimeControl "180+1"]
[Date "2022.06.21"]
[WhiteClock "0:00:12"]
[BlackClock "0:00:11"]

1. e4 {[%clk 0:02:59]}  c6 {[%clk 0:02:58]} 2. d4 {[%clk 0:02:58]}  d5 {[%clk 0:02:58]} 3. e5 {[%clk 0:02:58]}  Bf5 {[%clk 0:02:57]} 4. Nf3 {[%clk 0:02:59]}  e6 {[%clk 0:02:57]} 5. Be2 {[%clk 0:02:57]}  Nd7 {[%clk 0:02:55]} 6. O-O {[%clk 0:02:57]}  h6 {[%clk 0:02:55]} 7. a4 {[%clk 0:02:56]}  Ne7 {[%clk 0:02:54]} 8. a5 {[%clk 0:02:56]}  Bh7 {[%clk 0:02:49]} 9. a6 {[%clk 0:02:56]}  b6 {[%clk 0:02:48]} 10. c4 {[%clk 0:02:56]}  dxc4 {[%clk 0:02:45]} 11. Bxc4 {[%clk 0:02:55]}  Nd5 {[%clk 0:02:45]} 12. Nc3 {[%clk 0:02:55]}  Nb4 {[%clk 0:02:36]} 13. Ne1 {[%clk 0:02:22]}  Be7 {[%clk 0:02:19]} 14. Qg4 {[%clk 0:02:21]}  Bg6 {[%clk 0:02:15]} 15. Bxe6 {[%clk 0:02:12]}  h5 {[%clk 0:02:13]} 16. Bxd7+ {[%clk 0:02:08]}  Qxd7 {[%clk 0:02:13]} 17. Qxd7+ {[%clk 0:02:08]}  Kxd7 {[%clk 0:02:13]} 18. f4 {[%clk 0:02:07]}  Bf5 {[%clk 0:02:11]} 19. Nd1 {[%clk 0:01:36]}  c5 {[%clk 0:02:02]} 20. dxc5 {[%clk 0:01:25]}  bxc5 {[%clk 0:01:57]} 21. Ne3 {[%clk 0:01:22]}  Be4 {[%clk 0:01:57]} 22. Nf3 {[%clk 0:01:10]}  Kc6 {[%clk 0:01:52]} 23. Bd2 {[%clk 0:01:00]}  Rab8 {[%clk 0:01:38]} 24. Bc3 {[%clk 0:00:54]}  Nd3 {[%clk 0:01:32]} 25. Nd2 {[%clk 0:00:54]}  Bh7 {[%clk 0:01:29]} 26. Ndc4 {[%clk 0:00:38]}  Be4 {[%clk 0:01:21]} 27. f5 {[%clk 0:00:38]}  Bg5 {[%clk 0:01:19]} 28. Na5+ {[%clk 0:00:20]}  Kc7 {[%clk 0:01:18]} 29. Nec4 {[%clk 0:00:20]}  Rhd8 {[%clk 0:01:06]} 30. e6 {[%clk 0:00:20]}  f6 {[%clk 0:00:58]} 31. Bd2 {[%clk 0:00:16]}  Bxd2 {[%clk 0:00:52]} 32. Nxd2 {[%clk 0:00:17]}  Ba8 {[%clk 0:00:46]} 33. Ndc4 {[%clk 0:00:17]}  Nxb2 {[%clk 0:00:44]} 34. Rab1 {[%clk 0:00:16]}  Nxc4 {[%clk 0:00:39]} 35. Nxc4 {[%clk 0:00:16]}  Rxb1 {[%clk 0:00:34]} 36. Rxb1 {[%clk 0:00:17]}  Be4 {[%clk 0:00:34]} 37. Rf1 {[%clk 0:00:12]}  Bd3 {[%clk 0:00:34]} 38. Rc1 {[%clk 0:00:12]}  Bxf5 {[%clk 0:00:32]} 39. e7 {[%clk 0:00:12]}  Re8 {[%clk 0:00:31]} 40. Re1 {[%clk 0:00:12]}  Kd7 {[%clk 0:00:21]} 41. Na5 {[%clk 0:00:12]}  Rxe7 {[%clk 0:00:14]} 42. Rxe7+ {[%clk 0:00:12]}  Kxe7 {[%clk 0:00:14]} 43. Nc6+ {[%clk 0:00:13]}  Kd7 {[%clk 0:00:13]} 44. Nxa7 {[%clk 0:00:14]}  Bd3 {[%clk 0:00:11]} 45. Kf2 {[%clk 0:00:13]}  Bxa6 {[%clk 0:00:10]} 46. Ke3 {[%clk 0:00:12]}  Kc7 {[%clk 0:00:11]} 0-1


[Site "https://www.chess.com"]

[Event "Titled Tuesday Blitz June 21 Early 2022"]
[White "So, Wesley"]
[Black "Oparin, Grigoriy"]
[WhiteFideId "5202213"]
[BlackFideId "24125890"]
[WhiteElo "2742"]
[BlackElo "2639"]
[Result "1-0"]
[Round "11"]
[TimeControl "180+1"]
[Date "2022.06.21"]
[WhiteClock "0:00:08"]
[BlackClock "0:00:02"]

1. e4 {[%clk 0:03:00]}  e5 {[%clk 0:03:00]} 2. Nf3 {[%clk 0:02:59]}  Nc6 {[%clk 0:03:00]} 3. Bc4 {[%clk 0:02:58]}  Bc5 {[%clk 0:03:00]} 4. c3 {[%clk 0:02:58]}  Nf6 {[%clk 0:03:01]} 5. d3 {[%clk 0:02:59]}  d6 {[%clk 0:03:00]} 6. O-O {[%clk 0:02:59]}  h6 {[%clk 0:03:01]} 7. Re1 {[%clk 0:02:56]}  O-O {[%clk 0:03:01]} 8. b4 {[%clk 0:02:56]}  Bb6 {[%clk 0:03:01]} 9. Nbd2 {[%clk 0:02:56]}  a5 {[%clk 0:02:53]} 10. b5 {[%clk 0:02:54]}  Ne7 {[%clk 0:02:54]} 11. d4 {[%clk 0:02:53]}  Ng6 {[%clk 0:02:50]} 12. h3 {[%clk 0:02:40]}  Re8 {[%clk 0:02:46]} 13. Bd3 {[%clk 0:02:21]}  c6 {[%clk 0:02:44]} 14. Rb1 {[%clk 0:02:15]}  Be6 {[%clk 0:02:38]} 15. a4 {[%clk 0:02:13]}  Qc7 {[%clk 0:02:34]} 16. Qc2 {[%clk 0:02:07]}  Rac8 {[%clk 0:02:27]} 17. Qb2 {[%clk 0:02:03]}  Rb8 {[%clk 0:02:09]} 18. c4 {[%clk 0:01:58]}  exd4 {[%clk 0:02:05]} 19. Nxd4 {[%clk 0:01:59]}  Ne5 {[%clk 0:01:55]} 20. Bf1 {[%clk 0:01:55]}  Bd7 {[%clk 0:01:53]} 21. Qc3 {[%clk 0:01:43]}  Bc5 {[%clk 0:01:46]} 22. Ba3 {[%clk 0:01:39]}  Bb4 {[%clk 0:01:44]} 23. Qe3 {[%clk 0:01:36]}  Ng6 {[%clk 0:01:21]} 24. N4f3 {[%clk 0:01:30]}  c5 {[%clk 0:01:04]} 25. Bb2 {[%clk 0:01:28]}  Re6 {[%clk 0:01:02]} 26. g3 {[%clk 0:01:01]}  Rbe8 {[%clk 0:01:02]} 27. Qd3 {[%clk 0:00:59]}  Ne5 {[%clk 0:00:51]} 28. Nxe5 {[%clk 0:00:45]}  dxe5 {[%clk 0:00:52]} 29. Rbd1 {[%clk 0:00:45]}  Rd6 {[%clk 0:00:49]} 30. Qc2 {[%clk 0:00:45]}  Qc8 {[%clk 0:00:31]} 31. Kh2 {[%clk 0:00:41]}  Qc7 {[%clk 0:00:18]} 32. Re3 {[%clk 0:00:37]}  Bc8 {[%clk 0:00:16]} 33. Nf3 {[%clk 0:00:36]}  Rxd1 {[%clk 0:00:15]} 34. Qxd1 {[%clk 0:00:37]}  Nd7 {[%clk 0:00:13]} 35. Nh4 {[%clk 0:00:22]}  Nf8 {[%clk 0:00:12]} 36. Nf5 {[%clk 0:00:21]}  Rd8 {[%clk 0:00:09]} 37. Qg4 {[%clk 0:00:20]}  g6 {[%clk 0:00:05]} 38. Nxh6+ {[%clk 0:00:17]}  Kh7 {[%clk 0:00:05]} 39. Qh4 {[%clk 0:00:16]}  Kg7 {[%clk 0:00:05]} 40. Bxe5+ {[%clk 0:00:09]}  Qxe5 {[%clk 0:00:05]} 41. Qxd8 {[%clk 0:00:10]}  Be6 {[%clk 0:00:02]} 42. Ng4 {[%clk 0:00:09]}  Bxg4 {[%clk 0:00:02]} 43. hxg4 {[%clk 0:00:10]}  Bc3 {[%clk 0:00:02]} 44. Qd5 {[%clk 0:00:09]}  Qf6 {[%clk 0:00:02]} 45. Kg2 {[%clk 0:00:08]}  Qe7 {[%clk 0:00:02]} 46. Rxc3 {[%clk 0:00:08]}  Ne6 {[%clk 0:00:02]} 47. Qe5+ {[%clk 0:00:08]} 1-0


[Site "https://www.chess.com"]

[Event "Titled Tuesday Blitz June 21 Early 2022"]
[White "Starozhilov, Leonid"]
[Black "Kobalia, Mikhail"]
[WhiteFideId "14106752"]
[BlackFideId "4119150"]
[WhiteElo "2414"]
[BlackElo "2667"]
[Result "0-1"]
[Round "11"]
[TimeControl "180+1"]
[Date "2022.06.21"]
[WhiteClock "0:00:15"]
[BlackClock "0:00:37"]

1. b3 {[%clk 0:02:48]}  e5 {[%clk 0:02:59]} 2. Bb2 {[%clk 0:02:49]}  Nc6 {[%clk 0:02:59]} 3. e3 {[%clk 0:02:50]}  g6 {[%clk 0:02:59]} 4. Bb5 {[%clk 0:02:49]}  Bg7 {[%clk 0:02:58]} 5. Ne2 {[%clk 0:02:45]}  Nge7 {[%clk 0:02:57]} 6. d4 {[%clk 0:02:38]}  O-O {[%clk 0:02:24]} 7. O-O {[%clk 0:02:32]}  exd4 {[%clk 0:02:18]} 8. Bxc6 {[%clk 0:02:27]}  Nxc6 {[%clk 0:02:16]} 9. Nxd4 {[%clk 0:02:27]}  Nxd4 {[%clk 0:02:14]} 10. Bxd4 {[%clk 0:02:27]}  d5 {[%clk 0:02:14]} 11. Bxg7 {[%clk 0:02:21]}  Kxg7 {[%clk 0:02:14]} 12. Qd4+ {[%clk 0:02:15]}  Qf6 {[%clk 0:02:13]} 13. Nd2 {[%clk 0:02:10]}  Bf5 {[%clk 0:02:10]} 14. c3 {[%clk 0:02:06]}  b6 {[%clk 0:02:04]} 15. Rfd1 {[%clk 0:01:58]}  c5 {[%clk 0:02:03]} 16. Qxf6+ {[%clk 0:01:58]}  Kxf6 {[%clk 0:02:04]} 17. Nf3 {[%clk 0:01:56]}  Rfd8 {[%clk 0:02:02]} 18. Rd2 {[%clk 0:01:55]}  Be4 {[%clk 0:02:01]} 19. Rad1 {[%clk 0:01:55]}  Rd6 {[%clk 0:01:59]} 20. Ne1 {[%clk 0:01:51]}  Rad8 {[%clk 0:01:58]} 21. f3 {[%clk 0:01:50]}  Bf5 {[%clk 0:01:58]} 22. Kf2 {[%clk 0:01:43]}  Ke7 {[%clk 0:01:57]} 23. h4 {[%clk 0:01:43]}  h5 {[%clk 0:01:55]} 24. Nd3 {[%clk 0:01:35]}  Bxd3 {[%clk 0:01:45]} 25. Rxd3 {[%clk 0:01:35]}  Ke6 {[%clk 0:01:46]} 26. Kg3 {[%clk 0:01:29]}  Ke5 {[%clk 0:01:46]} 27. Kf2 {[%clk 0:01:24]}  R8d7 {[%clk 0:01:45]} 28. R3d2 {[%clk 0:01:23]}  a5 {[%clk 0:01:30]} 29. a4 {[%clk 0:01:13]}  d4 {[%clk 0:01:30]} 30. exd4+ {[%clk 0:01:02]}  cxd4 {[%clk 0:01:29]} 31. c4 {[%clk 0:01:03]}  Re6 {[%clk 0:01:14]} 32. g3 {[%clk 0:00:53]}  Red6 {[%clk 0:01:03]} 33. Rd3 {[%clk 0:00:53]}  Kf5 {[%clk 0:00:58]} 34. Re1 {[%clk 0:00:52]}  Re6 {[%clk 0:00:56]} 35. Red1 {[%clk 0:00:51]}  Red6 {[%clk 0:00:56]} 36. Re1 {[%clk 0:00:52]}  Re6 {[%clk 0:00:47]} 37. Red1 {[%clk 0:00:52]}  Rde7 {[%clk 0:00:43]} 38. R1d2 {[%clk 0:00:48]}  Re3 {[%clk 0:00:43]} 39. Rxd4 {[%clk 0:00:36]}  Rxb3 {[%clk 0:00:42]} 40. Rf4+ {[%clk 0:00:23]}  Ke6 {[%clk 0:00:42]} 41. Rfd4 {[%clk 0:00:16]}  Kf6 {[%clk 0:00:40]} 42. Rd6+ {[%clk 0:00:10]}  Re6 {[%clk 0:00:40]} 43. Rxe6+ {[%clk 0:00:10]}  Kxe6 {[%clk 0:00:40]} 44. Rd5 {[%clk 0:00:10]}  Rb4 {[%clk 0:00:40]} 45. Rb5 {[%clk 0:00:09]}  Rxb5 {[%clk 0:00:37]} 46. cxb5 {[%clk 0:00:10]}  Kd5 {[%clk 0:00:38]} 47. g4 {[%clk 0:00:11]}  Kc4 {[%clk 0:00:37]} 48. Ke3 {[%clk 0:00:11]}  Kb3 {[%clk 0:00:36]} 49. Kf4 {[%clk 0:00:12]}  Kxa4 {[%clk 0:00:36]} 50. gxh5 {[%clk 0:00:13]}  gxh5 {[%clk 0:00:36]} 51. Kg5 {[%clk 0:00:14]}  Kxb5 {[%clk 0:00:36]} 52. Kxh5 {[%clk 0:00:14]}  a4 {[%clk 0:00:37]} 53. Kg5 {[%clk 0:00:15]}  a3 {[%clk 0:00:37]} 0-1


[Site "https://www.chess.com"]

[Event "Titled Tuesday Blitz June 21 Early 2022"]
[White "Stribuk, Artiom"]
[Black "Ovchinnikov, Vsevolod"]
[WhiteFideId "13515659"]
[BlackFideId "24176842"]
[WhiteElo "2259"]
[BlackElo "2376"]
[Result "1-0"]
[Round "11"]
[TimeControl "180+1"]
[Date "2022.06.21"]
[WhiteClock "0:00:14"]
[BlackClock "0:00:05"]

1. d4 {[%clk 0:03:00]}  Nf6 {[%clk 0:03:00]} 2. c4 {[%clk 0:03:00]}  g6 {[%clk 0:02:59]} 3. g3 {[%clk 0:02:59]}  d5 {[%clk 0:02:58]} 4. cxd5 {[%clk 0:02:58]}  Nxd5 {[%clk 0:02:59]} 5. Bg2 {[%clk 0:02:58]}  Bg7 {[%clk 0:03:00]} 6. e4 {[%clk 0:02:58]}  Nb6 {[%clk 0:03:00]} 7. Ne2 {[%clk 0:02:59]}  c5 {[%clk 0:02:55]} 8. d5 {[%clk 0:02:57]}  e6 {[%clk 0:02:54]} 9. Nbc3 {[%clk 0:02:57]}  exd5 {[%clk 0:02:54]} 10. exd5 {[%clk 0:02:58]}  O-O {[%clk 0:02:55]} 11. O-O {[%clk 0:02:58]}  Bg4 {[%clk 0:02:56]} 12. h3 {[%clk 0:02:52]}  Bxe2 {[%clk 0:02:55]} 13. Qxe2 {[%clk 0:02:53]}  Re8 {[%clk 0:02:55]} 14. Qf3 {[%clk 0:02:51]}  N8d7 {[%clk 0:02:48]} 15. Bf4 {[%clk 0:02:47]}  Ne5 {[%clk 0:02:47]} 16. Qd1 {[%clk 0:02:44]}  c4 {[%clk 0:02:40]} 17. Qc2 {[%clk 0:02:36]}  Nd3 {[%clk 0:02:33]} 18. Be3 {[%clk 0:02:35]}  Rxe3 {[%clk 0:02:29]} 19. fxe3 {[%clk 0:02:35]}  Qg5 {[%clk 0:02:30]} 20. Rf3 {[%clk 0:02:27]}  Re8 {[%clk 0:02:11]} 21. Raf1 {[%clk 0:02:25]}  f5 {[%clk 0:02:09]} 22. Nd1 {[%clk 0:02:04]}  Ne5 {[%clk 0:01:58]} 23. Rf4 {[%clk 0:02:03]}  Qxg3 {[%clk 0:01:57]} 24. Qf2 {[%clk 0:01:54]}  Qg5 {[%clk 0:01:57]} 25. h4 {[%clk 0:01:52]}  Qd8 {[%clk 0:01:54]} 26. Qg3 {[%clk 0:01:25]}  Nd3 {[%clk 0:01:47]} 27. R4f3 {[%clk 0:01:24]}  Be5 {[%clk 0:01:38]} 28. Qh3 {[%clk 0:01:23]}  Nxd5 {[%clk 0:01:36]} 29. h5 {[%clk 0:01:13]}  Nf6 {[%clk 0:01:20]} 30. hxg6 {[%clk 0:01:09]}  hxg6 {[%clk 0:01:21]} 31. Qh6 {[%clk 0:01:07]}  Kf7 {[%clk 0:01:22]} 32. Rh3 {[%clk 0:01:06]}  Ng4 {[%clk 0:00:48]} 33. Qh7+ {[%clk 0:01:05]}  Bg7 {[%clk 0:00:48]} 34. Nc3 {[%clk 0:00:48]}  Nxe3 {[%clk 0:00:15]} 35. Rg3 {[%clk 0:00:42]}  Re6 {[%clk 0:00:08]} 36. Rxe3 {[%clk 0:00:22]}  Rxe3 {[%clk 0:00:07]} 37. Bd5+ {[%clk 0:00:22]}  Kf6 {[%clk 0:00:08]} 38. Qh4+ {[%clk 0:00:22]}  g5 {[%clk 0:00:07]} 39. Qh7 {[%clk 0:00:16]}  Re5 {[%clk 0:00:05]} 40. Ne4+ {[%clk 0:00:14]} 1-0


[Site "https://www.chess.com"]

[Event "Titled Tuesday Blitz June 21 Early 2022"]
[White "Tregubov, Pavel V."]
[Black "Tisaj, Domen"]
[WhiteFideId "4115341"]
[BlackFideId "14628708"]
[WhiteElo "2341"]
[BlackElo "2326"]
[Result "1-0"]
[Round "11"]
[TimeControl "180+1"]
[Date "2022.06.21"]
[WhiteClock "0:00:49"]
[BlackClock "0:01:44"]

1. e4 {[%clk 0:03:00]}  c5 {[%clk 0:02:59]} 2. Nf3 {[%clk 0:03:00]}  d6 {[%clk 0:02:59]} 3. Bb5+ {[%clk 0:02:59]}  Bd7 {[%clk 0:02:59]} 4. Bxd7+ {[%clk 0:02:59]}  Nxd7 {[%clk 0:02:59]} 5. O-O {[%clk 0:02:57]}  Ngf6 {[%clk 0:03:00]} 6. Re1 {[%clk 0:02:54]}  e6 {[%clk 0:02:59]} 7. c3 {[%clk 0:02:55]}  Be7 {[%clk 0:02:59]} 8. d4 {[%clk 0:02:55]}  O-O {[%clk 0:02:59]} 9. e5 {[%clk 0:02:46]}  Nd5 {[%clk 0:02:59]} 10. c4 {[%clk 0:02:37]}  N5b6 {[%clk 0:02:57]} 11. b3 {[%clk 0:02:34]}  cxd4 {[%clk 0:02:57]} 12. exd6 {[%clk 0:02:30]}  Bf6 {[%clk 0:02:40]} 13. Nbd2 {[%clk 0:02:10]}  Nc5 {[%clk 0:02:36]} 14. Ba3 {[%clk 0:02:10]}  Rc8 {[%clk 0:02:28]} 15. Bxc5 {[%clk 0:02:00]}  Rxc5 {[%clk 0:02:28]} 16. Ne4 {[%clk 0:02:00]}  Rc6 {[%clk 0:02:29]} 17. c5 {[%clk 0:01:58]}  Nd5 {[%clk 0:02:27]} 18. Rc1 {[%clk 0:01:40]}  Nc3 {[%clk 0:02:09]} 19. Nxf6+ {[%clk 0:01:30]}  Qxf6 {[%clk 0:02:05]} 20. Qxd4 {[%clk 0:01:31]}  Nxa2 {[%clk 0:02:03]} 21. Rc4 {[%clk 0:01:03]}  a5 {[%clk 0:01:54]} 22. Ne5 {[%clk 0:00:56]}  Rcc8 {[%clk 0:01:52]} 23. Qd2 {[%clk 0:00:49]}  Qd8 {[%clk 0:01:44]} 1-0


[Site "https://www.chess.com"]

[Event "Titled Tuesday Blitz June 21 Early 2022"]
[White "Vakhlamov, Igor L."]
[Black "Terry, Renato"]
[WhiteFideId "24126748"]
[BlackFideId "3803457"]
[WhiteElo "2401"]
[BlackElo "2577"]
[Result "1-0"]
[Round "11"]
[TimeControl "180+1"]
[Date "2022.06.21"]
[WhiteClock "0:00:07"]
[BlackClock "0:00:03"]

1. e4 {[%clk 0:03:00]}  g6 {[%clk 0:02:59]} 2. d4 {[%clk 0:03:00]}  Bg7 {[%clk 0:02:59]} 3. Nf3 {[%clk 0:03:01]}  d6 {[%clk 0:02:59]} 4. Bc4 {[%clk 0:03:01]}  Nf6 {[%clk 0:03:00]} 5. Qe2 {[%clk 0:03:01]}  O-O {[%clk 0:02:55]} 6. h3 {[%clk 0:03:01]}  c6 {[%clk 0:02:53]} 7. Bb3 {[%clk 0:03:01]}  b5 {[%clk 0:02:51]} 8. O-O {[%clk 0:03:00]}  a5 {[%clk 0:02:51]} 9. a3 {[%clk 0:02:56]}  Ba6 {[%clk 0:02:50]} 10. Re1 {[%clk 0:02:56]}  Nfd7 {[%clk 0:02:43]} 11. Nbd2 {[%clk 0:02:37]}  c5 {[%clk 0:02:40]} 12. c3 {[%clk 0:02:31]}  cxd4 {[%clk 0:02:34]} 13. cxd4 {[%clk 0:02:32]}  Nc6 {[%clk 0:02:35]} 14. Qe3 {[%clk 0:02:25]}  Qb6 {[%clk 0:02:32]} 15. Bd5 {[%clk 0:01:26]}  Rac8 {[%clk 0:02:27]} 16. Bxc6 {[%clk 0:01:22]}  Rxc6 {[%clk 0:02:28]} 17. Nf1 {[%clk 0:01:21]}  Rfc8 {[%clk 0:02:22]} 18. Ng3 {[%clk 0:01:21]}  Rc2 {[%clk 0:02:19]} 19. Qg5 {[%clk 0:01:20]}  Bxd4 {[%clk 0:02:02]} 20. Nxd4 {[%clk 0:01:15]}  Qxd4 {[%clk 0:02:03]} 21. Be3 {[%clk 0:01:09]}  Qe5 {[%clk 0:01:54]} 22. Nf5 {[%clk 0:01:01]}  f6 {[%clk 0:01:46]} 23. Qg4 {[%clk 0:01:01]}  Nf8 {[%clk 0:01:28]} 24. Nh6+ {[%clk 0:00:42]}  Kg7 {[%clk 0:01:26]} 25. Nf5+ {[%clk 0:00:40]}  Kh8 {[%clk 0:01:21]} 26. Bh6 {[%clk 0:00:32]}  Qe6 {[%clk 0:01:04]} 27. Bg7+ {[%clk 0:00:23]}  Kg8 {[%clk 0:01:04]} 28. Bh6 {[%clk 0:00:14]}  Kf7 {[%clk 0:00:52]} 29. Qg3 {[%clk 0:00:13]}  Qd7 {[%clk 0:00:27]} 30. Rad1 {[%clk 0:00:10]}  b4 {[%clk 0:00:22]} 31. axb4 {[%clk 0:00:07]}  axb4 {[%clk 0:00:22]} 32. Nxd6+ {[%clk 0:00:03]}  exd6 {[%clk 0:00:22]} 33. Rxd6 {[%clk 0:00:04]}  Qc7 {[%clk 0:00:20]} 34. Rxa6 {[%clk 0:00:01]}  Qxg3 {[%clk 0:00:21]} 35. fxg3 {[%clk 0:00:02]}  Ne6 {[%clk 0:00:20]} 36. Rf1 {[%clk 0:00:03]}  R8c6 {[%clk 0:00:18]} 37. Ra7+ {[%clk 0:00:03]}  Rc7 {[%clk 0:00:18]} 38. Ra6 {[%clk 0:00:03]}  Rxb2 {[%clk 0:00:16]} 39. Rb6 {[%clk 0:00:03]}  Rcc2 {[%clk 0:00:11]} 40. Rb7+ {[%clk 0:00:03]}  Rc7 {[%clk 0:00:11]} 41. Rb6 {[%clk 0:00:03]}  b3 {[%clk 0:00:11]} 42. Bf4 {[%clk 0:00:01]}  Rc5 {[%clk 0:00:10]} 43. Be3 {[%clk 0:00:01]}  Rc4 {[%clk 0:00:08]} 44. Bc1 {[%clk 0:00:01]}  Rb1 {[%clk 0:00:08]} 45. Ba3 {[%clk 0:00:02]}  Rxf1+ {[%clk 0:00:08]} 46. Kxf1 {[%clk 0:00:02]}  Nd4 {[%clk 0:00:06]} 47. Bb2 {[%clk 0:00:02]}  Ne6 {[%clk 0:00:04]} 48. Rxb3 {[%clk 0:00:02]}  Rxe4 {[%clk 0:00:05]} 49. Rb7+ {[%clk 0:00:03]}  Ke8 {[%clk 0:00:05]} 50. Bxf6 {[%clk 0:00:04]}  Nc5 {[%clk 0:00:05]} 51. Rxh7 {[%clk 0:00:03]}  Nd3 {[%clk 0:00:05]} 52. Bc3 {[%clk 0:00:04]}  Rc4 {[%clk 0:00:05]} 53. Bd2 {[%clk 0:00:04]}  Rc2 {[%clk 0:00:05]} 54. Ke2 {[%clk 0:00:04]}  Ne5 {[%clk 0:00:06]} 55. Kd1 {[%clk 0:00:04]}  Ra2 {[%clk 0:00:06]} 56. Rh4 {[%clk 0:00:05]}  Kf7 {[%clk 0:00:04]} 57. Re4 {[%clk 0:00:05]}  Nd3 {[%clk 0:00:05]} 58. Re3 {[%clk 0:00:05]}  Nb2+ {[%clk 0:00:04]} 59. Ke2 {[%clk 0:00:05]}  Nc4 {[%clk 0:00:05]} 60. Rd3 {[%clk 0:00:06]}  Ke6 {[%clk 0:00:05]} 61. h4 {[%clk 0:00:06]}  Nd6 {[%clk 0:00:05]} 62. g4 {[%clk 0:00:06]}  Ne4 {[%clk 0:00:06]} 63. Rd4 {[%clk 0:00:06]}  Ke5 {[%clk 0:00:06]} 64. Rd3 {[%clk 0:00:04]}  Nc5 {[%clk 0:00:06]} 65. Rd8 {[%clk 0:00:04]}  Ne4 {[%clk 0:00:06]} 66. Ke3 {[%clk 0:00:04]}  Ra3+ {[%clk 0:00:06]} 67. Ke2 {[%clk 0:00:05]}  Ra2 {[%clk 0:00:06]} 68. Kd1 {[%clk 0:00:05]}  Nf2+ {[%clk 0:00:06]} 69. Ke1 {[%clk 0:00:05]}  Nxg4 {[%clk 0:00:07]} 70. Rg8 {[%clk 0:00:04]}  Kf5 {[%clk 0:00:07]} 71. Rf8+ {[%clk 0:00:04]}  Ke4 {[%clk 0:00:07]} 72. Rf4+ {[%clk 0:00:04]}  Kd3 {[%clk 0:00:03]} 73. Rxg4 {[%clk 0:00:05]}  Rxd2 {[%clk 0:00:02]} 74. Rxg6 {[%clk 0:00:04]}  Ra2 {[%clk 0:00:01]} 75. h5 {[%clk 0:00:04]}  Ke4 {[%clk 0:00:02]} 76. h6 {[%clk 0:00:04]}  Ra7 {[%clk 0:00:01]} 77. Rg7 {[%clk 0:00:04]}  Ra6 {[%clk 0:00:01]} 78. h7 {[%clk 0:00:04]}  Rh6 {[%clk 0:00:02]} 79. g4 {[%clk 0:00:05]}  Ke3 {[%clk 0:00:01]} 80. Kd1 {[%clk 0:00:05]}  Kf4 {[%clk 0:00:01]} 81. g5 {[%clk 0:00:04]}  Rh1+ {[%clk 0:00:02]} 82. Ke2 {[%clk 0:00:05]}  Rh2+ {[%clk 0:00:02]} 83. Kd3 {[%clk 0:00:05]}  Rh3+ {[%clk 0:00:02]} 84. Kd4 {[%clk 0:00:05]}  Kf5 {[%clk 0:00:01]} 85. g6 {[%clk 0:00:06]}  Kf6 {[%clk 0:00:02]} 86. Rg8 {[%clk 0:00:06]}  Rh4+ {[%clk 0:00:03]} 87. Kd5 {[%clk 0:00:06]}  Rh5+ {[%clk 0:00:03]} 88. Kd6 {[%clk 0:00:07]}  Rh1 {[%clk 0:00:03]} 89. h8=Q+ {[%clk 0:00:07]} 1-0


[Site "https://www.chess.com"]

[Event "Titled Tuesday Blitz June 21 Early 2022"]
[White "Volkov, Maksim"]
[Black "Yuan, Qingyu"]
[WhiteFideId "54123070"]
[BlackFideId "8609772"]
[WhiteElo "2155"]
[BlackElo "2359"]
[Result "1-0"]
[Round "11"]
[TimeControl "180+1"]
[Date "2022.06.21"]
[WhiteClock "0:00:07"]
[BlackClock "0:00:11"]

1. d4 {[%clk 0:03:00]}  d5 {[%clk 0:03:00]} 2. c4 {[%clk 0:03:00]}  e6 {[%clk 0:03:00]} 3. Nf3 {[%clk 0:03:00]}  Nf6 {[%clk 0:03:01]} 4. g3 {[%clk 0:03:00]}  dxc4 {[%clk 0:03:01]} 5. Bg2 {[%clk 0:03:00]}  c5 {[%clk 0:03:02]} 6. O-O {[%clk 0:02:59]}  Nc6 {[%clk 0:03:02]} 7. dxc5 {[%clk 0:02:59]}  Qxd1 {[%clk 0:03:03]} 8. Rxd1 {[%clk 0:03:00]}  Bxc5 {[%clk 0:03:04]} 9. Nbd2 {[%clk 0:03:00]}  c3 {[%clk 0:03:05]} 10. bxc3 {[%clk 0:03:01]}  O-O {[%clk 0:03:05]} 11. Nb3 {[%clk 0:03:02]}  Be7 {[%clk 0:03:06]} 12. Nfd4 {[%clk 0:03:00]}  Nxd4 {[%clk 0:03:06]} 13. Nxd4 {[%clk 0:02:54]}  e5 {[%clk 0:02:52]} 14. Nb5 {[%clk 0:02:33]}  Bd7 {[%clk 0:02:46]} 15. Nd6 {[%clk 0:02:30]}  Ba4 {[%clk 0:02:26]} 16. Rd3 {[%clk 0:02:20]}  Rad8 {[%clk 0:02:14]} 17. Nxb7 {[%clk 0:02:15]}  Rxd3 {[%clk 0:02:10]} 18. exd3 {[%clk 0:02:16]}  Bc2 {[%clk 0:02:04]} 19. d4 {[%clk 0:02:01]}  e4 {[%clk 0:01:57]} 20. c4 {[%clk 0:01:51]}  Rc8 {[%clk 0:01:47]} 21. c5 {[%clk 0:01:42]}  Nd5 {[%clk 0:01:47]} 22. Be3 {[%clk 0:01:37]}  Rc6 {[%clk 0:01:39]} 23. Bf1 {[%clk 0:01:32]}  Kf8 {[%clk 0:01:28]} 24. Na5 {[%clk 0:01:25]}  Rc8 {[%clk 0:01:21]} 25. Bc4 {[%clk 0:01:15]}  Nb4 {[%clk 0:01:11]} 26. Rc1 {[%clk 0:01:05]}  Ba4 {[%clk 0:01:06]} 27. Rc3 {[%clk 0:00:48]}  f5 {[%clk 0:00:56]} 28. Bb3 {[%clk 0:00:37]}  Bb5 {[%clk 0:00:54]} 29. Be6 {[%clk 0:00:35]}  Rd8 {[%clk 0:00:47]} 30. Rb3 {[%clk 0:00:32]}  f4 {[%clk 0:00:28]} 31. gxf4 {[%clk 0:00:29]}  Be2 {[%clk 0:00:27]} 32. Rxb4 {[%clk 0:00:28]}  Bxc5 {[%clk 0:00:20]} 33. dxc5 {[%clk 0:00:17]}  Rd1+ {[%clk 0:00:20]} 34. Kg2 {[%clk 0:00:18]}  Bf3+ {[%clk 0:00:20]} 35. Kh3 {[%clk 0:00:17]}  Rg1 {[%clk 0:00:19]} 36. Nc6 {[%clk 0:00:17]}  g5 {[%clk 0:00:16]} 37. fxg5 {[%clk 0:00:11]}  Kg7 {[%clk 0:00:16]} 38. Ne5 {[%clk 0:00:11]}  Bg2+ {[%clk 0:00:14]} 39. Kg3 {[%clk 0:00:10]}  Kf8 {[%clk 0:00:11]} 40. Kf4 {[%clk 0:00:09]}  Ke7 {[%clk 0:00:11]} 41. Bf5 {[%clk 0:00:08]}  Bf3 {[%clk 0:00:11]} 42. Rb7+ {[%clk 0:00:08]}  Kd8 {[%clk 0:00:11]} 43. Bxe4 {[%clk 0:00:07]}  Bxe4 {[%clk 0:00:10]} 44. Kxe4 {[%clk 0:00:07]}  Rb1 {[%clk 0:00:11]} 45. Rxb1 {[%clk 0:00:07]} 1-0


[Site "https://www.chess.com"]